fUSD/lending_fUSD_20251228
["ID","MTS","AMOUNT","RATE_DAILY","PERIOD"]
[399942283,1766911840741,-4252.99,0.00016986,2]
[399942284,1766911840750,-150.0,0.00016986,2]
[399942285,1766911840760,-150.0,0.00016986,2]
[399942286,1766911840771,-150.0,0.00016986,2]
[399942287,1766911840782,-150.0,0.00016986,2]
[399942288,1766911840791,-150.0,0.00016986,2]
[399942289,1766911840802,-413.76435569,0.00016999,2]
[399942290,1766911840813,-60797.5397375,0.00016999,2]
[399942291,1766911840824,-277.91367706,0.00016999,2]
[399942292,1766911840833,-14956.9642722,0.00016999,2]
[399942293,1766911840844,-500.0,0.00016999,2]
[399942294,1766911840855,-602.50518509,0.00016999,2]
[399942295,1766911840865,-15712.0733424,0.00016999,2]
[399942296,1766911840875,-500.0,0.00016999,2]
[399942297,1766911840884,-500.0,0.00016999,2]
[399942298,1766911840893,-500.0,0.00016999,2]
[399942299,1766911840903,-119521.20255323,0.00017,2]
[399942300,1766911840919,-37531.49914839,0.00017,2]
[399942301,1766911840937,-8785.34554748,0.00017,2]
[399942302,1766911840977,-2259.39595949,0.00017,2]
[399942303,1766911840988,-2176.77434832,0.00017,2]
[399942304,1766911840999,-314.23420013,0.00017,2]
[399942305,1766911841010,-505.60542929,0.00017,2]
[399942306,1766911841025,-398.52112028,0.00017,2]
[399942307,1766911841037,-1256.38003316,0.00017,2]
[399942308,1766911841048,-37655.9480808,0.00017,2]
[399942309,1766911841057,-536622.3357722,0.00017,2]
[399942310,1766911841066,-325107.95872682,0.00017,2]
[399942329,1766911845922,-151.0,0.0001637,2]
[399942330,1766911845932,-151.0,0.0001637,2]
[399942331,1766911845942,-4331.89,0.000169,2]
[399942332,1766911846211,-374.61055392,0.000169,2]
[399942333,1766911846223,-2371.82197488,0.000169,2]
[399942334,1766911846233,-606.808043,0.00016915,2]
[399942336,1766911846242,-54164.49792172,0.00017,2]
[399942338,1766911846252,-279915.48,0.00017,2]
[399942407,1766912908725,187.1804378,0.00014,4]
[399942498,1766913031996,-1046.51182598,0.00014972,2]
[399942499,1766913032010,-153.48817402,0.00014972,2]
[399942500,1766913032020,-246.0,0.00014972,2]
[399942501,1766913032029,-300.0,0.00014972,2]
[399942502,1766913032039,-201.41739586,0.00014973,2]
[399942503,1766913032048,-288.2188704,0.00014973,2]
[399942504,1766913032060,-260.00041108,0.00014973,2]
[399942505,1766913032070,-203.94309107,0.00014973,2]
[399942506,1766913032089,-300.0,0.00014982,2]
[399942507,1766913032098,-203.94309107,0.00015161,2]
[399942508,1766913032108,-150.0,0.00015288,2]
[399942509,1766913032118,-150.0,0.00015288,2]
[399942510,1766913032129,-150.0,0.00015288,2]
[399942511,1766913032141,-51.5889665,0.00015288,2]
[399942512,1766913032155,-98.4110335,0.00015288,2]
[399942513,1766913032163,-150.0,0.00015288,2]
[399942514,1766913032173,-236.60050169,0.00015359,2]
[399942515,1766913032184,-302.0,0.00015359,2]
[399942516,1766913032207,-82.81949831,0.00015359,2]
[399942518,1766913032216,-612.62,0.00015445,2]
[399942520,1766913032226,-300.0,0.00015474,2]
[399942521,1766913032235,-735.67,0.00015475,2]
[399942522,1766913032244,-9999.99,0.00015475,2]
[399942523,1766913032255,-150.99,0.00015475,2]
[399942524,1766913032264,-150.99,0.00015475,2]
[399942526,1766913032274,-7931.69,0.00015475,2]
[399942528,1766913032283,-299.99,0.00015475,2]
[399942530,1766913032292,-1206.78,0.00015475,2]
[399942532,1766913032301,-1852.42,0.00015498,2]
[399942534,1766913032310,-1500.0,0.00015527,2]
[399942536,1766913032323,-999.0,0.0001588,3]
[399942539,1766913032333,-151.0,0.0001596,2]
[399942542,1766913032343,-151.0,0.0001596,2]
[399942545,1766913032352,-151.0,0.00015967,2]
[399942548,1766913032362,-151.0,0.00015967,2]
[399942550,1766913032371,-151.0,0.00015971,2]
[399942552,1766913032381,-151.0,0.00015971,2]
[399942553,1766913032390,-200.0,0.00016027,2]
[399942554,1766913032399,-200.0,0.00016027,2]
[399942555,1766913032408,-150.0,0.00016137,2]
[399942556,1766913032418,-322.6107,0.00016149,2]
[399942557,1766913032427,-548.42364936,0.00016178,2]
[399942558,1766913032439,-1874.65635064,0.00016178,2]
[399942559,1766913032448,-1000.0,0.0001628,2]
[399942560,1766913032458,-1000.0,0.0001628,2]
[399942561,1766913032469,-1005.17202788,0.0001628,2]
[399942562,1766913032478,-498.7032373,0.00016384,2]
[399942569,1766913038149,-3.2967627,0.00016384,2]
[399942570,1766913038159,-6425.88,0.00016438,2]
[399942571,1766913038168,-300.0,0.00016469,2]
[399942572,1766913038178,-250.0,0.0001647,2]
[399942573,1766913038190,-150.0,0.00016501,2]
[399942575,1766913038200,-157.142,0.00016562,2]
[399942576,1766913038210,-1234.9,0.00016562,2]
[399942577,1766913038219,-254.05773661,0.00016599,2]
[399942578,1766913038229,-360.0,0.00016604,2]
[399942579,1766913038238,-254.05773661,0.00016614,2]
[399942580,1766913038248,-2409.71057407,0.00016709,2]
[399942581,1766913038258,-173.12928314,0.00016709,2]
[399942582,1766913038267,-2409.71057406,0.0001673,2]
[399942583,1766913038277,-2409.71057406,0.00016751,2]
[399942584,1766913038287,-186.42759393,0.00016764,2]
[399942585,1766913038297,-2409.71057406,0.00016773,2]
[399942586,1766913038306,-173.12928314,0.00016773,2]
[399942587,1766913038316,-2409.71057406,0.00016794,2]
[399942588,1766913038326,-332.48155822,0.00016799,2]
[399942589,1766913038335,-586.06470858,0.00016799,2]
[399942590,1766913038344,-173.22071544,0.00016799,2]
[399942591,1766913038354,-500.0,0.00016799,2]
[399942592,1766913038364,-500.0,0.00016799,2]
[399942593,1766913038373,-185.64791589,0.00016799,2]
[399942594,1766913038383,-500.0,0.00016799,2]
[399942595,1766913038393,-500.0,0.00016799,2]
[399942596,1766913038402,-500.0,0.00016799,2]
[399942597,1766913038412,-585.07213969,0.00016799,2]
[399942599,1766913038421,-500.0,0.00016799,2]
[399942601,1766913038431,-500.0,0.00016799,2]
[399942603,1766913038440,-500.0,0.00016799,2]
[399942604,1766913038449,-475.84230193,0.00016799,2]
[399942605,1766913038459,-500.0,0.00016799,2]
[399942606,1766913038469,-500.0,0.00016799,2]
[399942608,1766913038479,-500.0,0.00016799,2]
[399942610,1766913038488,-500.0,0.00016799,2]
[399942612,1766913038497,-300.0,0.00016799,2]
[399942614,1766913038506,-500.0,0.00016799,2]
[399942616,1766913038515,-500.0,0.00016799,2]
[399942618,1766913038524,-500.0,0.00016799,2]
[399942620,1766913038533,-500.0,0.00016799,2]
[399942622,1766913038542,-500.0,0.00016799,2]
[399942624,1766913038551,-500.0,0.00016799,2]
[399942626,1766913038559,-500.0,0.00016799,2]
[399942629,1766913038577,-500.0,0.00016799,2]
[399942632,1766913038589,-500.0,0.00016799,2]
[399942634,1766913038599,-168.1010981,0.00016799,2]
[399942636,1766913038608,-500.0,0.00016799,2]
[399942638,1766913038618,-168.1010981,0.00016799,2]
[399942640,1766913038631,-331.8989019,0.00016799,2]
[399942642,1766913038640,-454.24,0.00016799,2]
[399942644,1766913038649,-353693.95296953,0.000168,2]
[399942646,1766913038662,-46346.80758099,0.000168,2]
[399942654,1766913040417,-4387.59769834,0.000168,2]
[399942655,1766913040429,-1994.67230166,0.000168,2]
[399942656,1766913040441,-593576.96944948,0.000168,2]
[399942657,1766913040451,-186.42759391,0.00016809,2]
[399942658,1766913040460,-2409.71057406,0.00016815,2]
[399942660,1766913040471,-2409.71057406,0.00016836,2]
[399942661,1766913040480,-173.12928314,0.00016836,2]
[399942662,1766913040489,-186.42759391,0.00016855,2]
[399942663,1766913040499,-2409.71057406,0.00016858,2]
[399942664,1766913040508,-200.0,0.00016864,2]
[399942665,1766913040517,-25000.0,0.00016865,3]
[399942666,1766913040527,-25000.0,0.00016874,3]
[399942667,1766913040536,-2409.71057406,0.00016879,2]
[399942668,1766913040546,-25000.0,0.00016882,3]
[399942669,1766913040555,-25000.0,0.00016891,3]
[399942670,1766913040564,-25000.0,0.00016891,3]
[399942671,1766913040574,-25000.0,0.00016891,3]
[399942673,1766913040584,-25000.0,0.000169,3]
[399942674,1766913040593,-25000.0,0.000169,3]
[399942675,1766913040603,-186.42759391,0.000169,2]
[399942676,1766913040612,-25000.0,0.000169,3]
[399942677,1766913040622,-508.81786266,0.000169,2]
[399942678,1766913040631,-2409.71057406,0.000169,2]
[399942679,1766913040640,-1962.36427914,0.000169,2]
[399942680,1766913040650,-156.81485742,0.000169,2]
[399942681,1766913040659,-1871.35742932,0.000169,2]
[399942682,1766913040669,-63328.95376663,0.000169,2]
[399942699,1766913043833,-151.0,0.00016276,2]
[399942700,1766913043843,-181.09785273,0.000169,2]
[399942701,1766913046305,-151.0,0.00016276,2]
[399942702,1766913046316,-823.46124942,0.000169,2]
[399942813,1766914001250,-535.3,0.00013699,2]
[399942814,1766914001277,-250.0,0.00013699,2]
[399942815,1766914001305,-2500.0,0.00013699,2]
[399942816,1766914001332,-263.0,0.00013699,2]
[399942850,1766914232175,-300.0,0.00014389,2]
[399942851,1766914232184,-1241.9138548,0.0001439,2]
[399942852,1766914232283,-405.05,0.0001439,2]
[399942853,1766914232295,-371.3259998,0.0001439,2]
[399942854,1766914232306,-481.7101454,0.0001439,2]
[399942855,1766914232316,-1688.2898546,0.0001439,2]
[399943051,1766914238292,-8597.9647409,0.0001439,2]
[399943052,1766914238302,-1255.29171877,0.00014479,2]
[399943053,1766914238312,-323.03,0.00014501,2]
[399943054,1766914238323,-1560.90127089,0.00014639,2]
[399943055,1766914238333,-28664.0,0.000149,2]
[399943056,1766914238342,-377.91,0.00014965,2]
[399943057,1766914238352,-465.30149586,0.00014973,2]
[399943058,1766914238362,-170.96,0.00015061,2]
[399943059,1766914238371,-173.12928314,0.00015188,2]
[399943060,1766914238381,-300.0,0.00015273,2]
[399943061,1766914238391,-500.0,0.00015274,2]
[399943062,1766914238400,-586.06470858,0.00015274,2]
[399943063,1766914238409,-173.22071544,0.00015274,2]
[399943064,1766914238419,-332.48155822,0.00015274,2]
[399943065,1766914238429,-501.60066048,0.00015274,2]
[399943066,1766914238439,-303.34821534,0.00015274,2]
[399943067,1766914238448,-500.0,0.00015274,2]
[399943068,1766914238458,-500.0,0.00015274,2]
[399943069,1766914238468,-500.0,0.00015274,2]
[399943070,1766914238477,-500.0,0.00015274,2]
[399943071,1766914238487,-500.0,0.00015274,2]
[399943072,1766914238497,-500.0,0.00015274,2]
[399943073,1766914238507,-500.0,0.00015274,2]
[399943074,1766914238517,-500.0,0.00015274,2]
[399943075,1766914238527,-374.82968442,0.00015274,2]
[399943076,1766914238536,-500.0,0.00015274,2]
[399943077,1766914238546,-500.0,0.00015274,2]
[399943078,1766914238555,-500.0,0.00015274,2]
[399943079,1766914238564,-500.0,0.00015274,2]
[399943081,1766914238574,-500.0,0.00015274,2]
[399943083,1766914238584,-500.0,0.00015274,2]
[399943085,1766914238593,-500.0,0.00015274,2]
[399943087,1766914238603,-500.0,0.00015274,2]
[399943089,1766914238612,-500.0,0.00015274,2]
[399943090,1766914238622,-500.0,0.00015274,2]
[399943091,1766914238632,-500.0,0.00015274,2]
[399943092,1766914238882,-500.0,0.00015274,2]
[399943093,1766914238891,-331.7243663,0.00015274,2]
[399943094,1766914238901,-500.0,0.00015274,2]
[399943095,1766914238910,-500.0,0.00015274,2]
[399943096,1766914238920,-530.94511534,0.00015274,2]
[399943097,1766914238929,-500.0,0.00015274,2]
[399943098,1766914238939,-500.0,0.00015274,2]
[399943099,1766914238948,-500.0,0.00015274,2]
[399943100,1766914238958,-500.0,0.00015274,2]
[399943101,1766914238967,-500.0,0.00015274,2]
[399943102,1766914238976,-500.0,0.00015274,2]
[399943103,1766914238986,-500.0,0.00015274,2]
[399943104,1766914238995,-500.0,0.00015274,2]
[399943105,1766914239005,-500.0,0.00015274,2]
[399943106,1766914239014,-500.0,0.00015274,2]
[399943107,1766914239023,-355.68627514,0.00015274,2]
[399943108,1766914239033,-500.0,0.00015274,2]
[399943109,1766914239042,-355.68627514,0.00015274,2]
[399943110,1766914239051,-500.0,0.00015274,2]
[399943111,1766914239061,-355.68627514,0.00015274,2]
[399943112,1766914239070,-500.0,0.00015274,2]
[399943113,1766914239080,-355.68627514,0.00015274,2]
[399943114,1766914239089,-325979.74803958,0.00015275,2]
[399943115,1766914239100,-3087.92698272,0.00015275,2]
[399943116,1766914240376,-670932.3249777,0.00015275,2]
[399943117,1766914240385,-150.0,0.00015288,2]
[399943118,1766914240395,-150.0,0.00015288,2]
[399943119,1766914240404,-150.0,0.00015288,2]
[399943120,1766914240413,-150.0,0.00015288,2]
[399943121,1766914240423,-177.55008946,0.00015309,2]
[399943122,1766914240432,-2409.71057407,0.00015331,2]
[399943123,1766914240442,-1519.60399527,0.00015331,2]
[399943124,1766914240451,-692.41,0.00015374,2]
[399943125,1766914240459,-157.142,0.00015374,2]
[399943126,1766914240469,-1234.9,0.00015374,2]
[399943127,1766914240478,-151.61717051,0.00015375,2]
[399943128,1766914240487,-500.0,0.00015375,2]
[399943129,1766914240496,-500.0,0.00015375,2]
[399943130,1766914240506,-500.0,0.00015375,2]
[399943131,1766914240515,-500.0,0.00015375,2]
[399943132,1766914240524,-500.0,0.00015375,2]
[399943133,1766914240533,-500.0,0.00015375,2]
[399943134,1766914240542,-500.0,0.00015375,2]
[399943135,1766914240551,-500.0,0.00015375,2]
[399943136,1766914240560,-500.0,0.00015375,2]
[399943137,1766914240569,-500.0,0.00015375,2]
[399943138,1766914240578,-500.0,0.00015375,2]
[399943139,1766914240587,-500.0,0.00015375,2]
[399943140,1766914240597,-5527.0,0.000154,3]
[399943141,1766914240606,-104129.578101,0.00015431,2]
[399943142,1766914240616,-2409.71057406,0.00015505,2]
[399943143,1766914240625,-1519.60399522,0.00015505,2]
[399943144,1766914240634,-17692.76,0.00015509,2]
[399943145,1766914240646,-177.55008944,0.00015574,2]
[399943146,1766914240655,-692.41,0.00015648,2]
[399943147,1766914240664,-2409.71057406,0.0001568,2]
[399943148,1766914240674,-1519.60399522,0.0001568,2]
[399943149,1766914240684,-391.89908485,0.00015711,2]
[399943150,1766914240694,-420.0,0.00015758,2]
[399943151,1766914240703,-173.12928314,0.00015759,2]
[399943152,1766914240715,-151.0,0.00015784,2]
[399943153,1766914240724,-151.0,0.00015784,2]
[399943154,1766914240733,-151.0,0.00015787,2]
[399943155,1766914240746,-151.0,0.00015787,2]
[399943156,1766914240755,-250.0,0.00015828,2]
[399943157,1766914240764,-300.0,0.00015828,2]
[399943158,1766914240774,-2500.0,0.00015828,2]
[399943159,1766914240783,-195.0,0.00015828,2]
[399943160,1766914240793,-177.55008944,0.00015839,2]
[399943161,1766914240814,-2409.71057406,0.00015854,2]
[399943162,1766914240837,-1519.60399522,0.00015854,2]
[399943163,1766914240846,-500.0,0.00015863,2]
[399943164,1766914240855,-476.74351809,0.0001589,2]
[399943165,1766914240874,-692.41,0.00015922,2]
[399943166,1766914240883,-68823.00989901,0.00016,2]
[399943167,1766914240898,-1119.9698822,0.00016,2]
[399943245,1766914246266,-4740.0,0.00016,2]
[399943251,1766914456490,157.05,7.611e-05,2]
[399943254,1766914574661,5527.0,0.00014,3]
[399943260,1766914698679,5527.0,0.000141,5]
[399943576,1766915431323,-655.18,0.0001475,2]
[399943577,1766915431333,-157.142,0.00014872,2]
[399943578,1766915431343,-1234.9,0.00014872,2]
[399943579,1766915431352,-465.30149586,0.00014973,2]
[399943580,1766915431362,-999.0,0.00015,3]
[399943581,1766915431372,-1200.0,0.00015073,2]
[399943582,1766915431381,-300.0,0.00015073,2]
[399943583,1766915431390,-64564.21821739,0.00015074,2]
[399943584,1766915431402,-753.54269787,0.00015074,2]
[399943585,1766915431483,-1027.11678612,0.00015074,2]
[399943602,1766915437515,-586.06470858,0.00015073,2]
[399943603,1766915437528,-332.48155822,0.00015073,2]
[399943604,1766915437539,-173.22071544,0.00015073,2]
[399943605,1766915437552,-500.0,0.00015073,2]
[399943606,1766915437562,-303.34821534,0.00015073,2]
[399943607,1766915437572,-500.0,0.00015073,2]
[399943608,1766915437586,-500.0,0.00015073,2]
[399943609,1766915437597,-501.60066048,0.00015073,2]
[399943610,1766915437609,-500.0,0.00015073,2]
[399943611,1766915437620,-374.82968442,0.00015073,2]
[399943613,1766915437629,-331.7243663,0.00015073,2]
[399943615,1766915437638,-355.68627514,0.00015073,2]
[399943617,1766915437647,-500.0,0.00015073,2]
[399943619,1766915437660,-500.0,0.00015073,2]
[399943621,1766915437670,-500.0,0.00015073,2]
[399943623,1766915437679,-500.0,0.00015073,2]
[399943625,1766915437689,-500.0,0.00015073,2]
[399943627,1766915437698,-500.0,0.00015073,2]
[399943629,1766915437707,-500.0,0.00015073,2]
[399943631,1766915437717,-500.0,0.00015073,2]
[399943633,1766915437726,-500.0,0.00015073,2]
[399943635,1766915437736,-500.0,0.00015073,2]
[399943636,1766915437746,-500.0,0.00015073,2]
[399943638,1766915437755,-339565.05275934,0.00015074,2]
[399943640,1766915437767,-680.26591852,0.00015074,2]
[399943642,1766915437779,-35438.70172898,0.00015074,2]
[399943660,1766915439508,-551.75042112,0.00015074,2]
[399943661,1766915439560,-1170.3795753,0.00015074,2]
[399943662,1766915439573,-623.85962557,0.00015074,2]
[399943663,1766915439588,-555625.11226979,0.00015074,2]
[399943664,1766915439597,-177.55008946,0.00015122,2]
[399943665,1766915439607,-2409.71057407,0.00015122,2]
[399943666,1766915439615,-173.12928314,0.00015122,2]
[399943667,1766915439626,-300.0,0.00015173,2]
[399943668,1766915439635,-500.0,0.00015174,2]
[399943669,1766915439645,-692.41,0.00015174,2]
[399943670,1766915439655,-157.05,0.00015222,2]
[399943671,1766915439667,-150.0,0.00015288,2]
[399943672,1766915439678,-150.0,0.00015288,2]
[399943673,1766915439687,-150.0,0.00015288,2]
[399943674,1766915439697,-150.0,0.00015288,2]
[399943675,1766915439707,-2409.71057406,0.0001532,2]
[399943676,1766915439716,-500.0,0.00015375,2]
[399943677,1766915439725,-500.0,0.00015375,2]
[399943678,1766915439734,-500.0,0.00015375,2]
[399943679,1766915439743,-500.0,0.00015375,2]
[399943680,1766915439752,-500.0,0.00015375,2]
[399943681,1766915439762,-500.0,0.00015375,2]
[399943682,1766915439771,-500.0,0.00015375,2]
[399943683,1766915439780,-500.0,0.00015375,2]
[399943684,1766915439789,-151.61717051,0.00015375,2]
[399943685,1766915439798,-500.0,0.00015375,2]
[399943686,1766915439807,-500.0,0.00015375,2]
[399943687,1766915439817,-500.0,0.00015375,2]
[399943688,1766915439827,-500.0,0.00015375,2]
[399943689,1766915439836,-177.55008944,0.00015418,2]
[399943690,1766915439846,-692.41,0.00015448,2]
[399943691,1766915439857,-2409.71057406,0.00015517,2]
[399943692,1766915439866,-13035.1728095,0.00015638,2]
[399943693,1766915439879,-3206.8174934,0.00015638,2]
[399943694,1766915439890,-3368.7151174,0.00015638,2]
[399943695,1766915439899,-151.0,0.00015664,2]
[399943696,1766915439909,-177.55008944,0.00015715,2]
[399943697,1766915439918,-2409.71057406,0.00015715,2]
[399943698,1766915439928,-173.12928314,0.00015715,2]
[399943699,1766915439937,-692.41,0.00015722,2]
[399943700,1766915439946,-2409.71057406,0.00015912,2]
[399943701,1766915439956,-692.41,0.00015996,2]
[399943702,1766915439965,-500.0,0.00015999,2]
[399943703,1766915439975,-500.0,0.00015999,2]
[399943704,1766915439984,-299593.65601429,0.00016,2]
[399943706,1766915440000,-22462.11737721,0.00016,2]
[399943707,1766915440011,-12669.23853477,0.00016,2]
[399943708,1766915440020,-177.55008944,0.00016011,2]
[399943709,1766915440030,-18134.96665793,0.00016022,2]
[399943710,1766915440042,-2786.1885218,0.00016022,2]
[399943711,1766915440053,-3432.34298008,0.00016022,2]
[399943712,1766915440064,-1074.70349067,0.00016022,2]
[399943713,1766915440078,-581.77229684,0.00016022,2]
[399943714,1766915440089,-6852.56484538,0.00016022,2]
[399943715,1766915440100,-732.69582939,0.00016022,2]
[399943716,1766915440111,-922.31639813,0.00016022,2]
[399943717,1766915440122,-439.32989242,0.00016022,2]
[399943722,1766915442983,-151.0,0.00015703,2]
[399943723,1766915442992,-151.0,0.00015879,2]
[399943724,1766915443002,-880.5000463,0.00016022,2]
[399943725,1766915443084,-1800.0,0.00016022,2]
[399943726,1766915443718,-481.44,0.00016022,2]
[399943737,1766915445457,-912.37869122,0.00016022,2]
[399943738,1766915445471,-2335.55933557,0.00016022,2]
[399943739,1766915445481,-1000.0,0.00016025,2]
[399943740,1766915445492,-2409.71057406,0.0001611,2]
[399943741,1766915445502,-5000.00306292,0.000162,5]
[399943742,1766915445513,-2500.0,0.00016225,2]
[399943743,1766915445522,-166.66,0.00016239,2]
[399943744,1766915445531,-692.41,0.0001627,2]
[399943745,1766915445542,-177.55008944,0.00016307,2]
[399943746,1766915445552,-2409.71057406,0.00016307,2]
[399943747,1766915445561,-173.12928314,0.00016307,2]
[399943748,1766915445571,-323.03,0.00016314,2]
[399943749,1766915445582,-300.0,0.00016359,2]
[399943750,1766915445591,-500.0,0.00016438,2]
[399943751,1766915445600,-500.0,0.00016438,2]
[399943752,1766915445609,-500.0,0.00016438,2]
[399943753,1766915445620,-500.0,0.00016438,2]
[399943754,1766915445630,-500.0,0.00016438,2]
[399943755,1766915445639,-500.0,0.00016438,2]
[399943756,1766915445649,-500.0,0.00016438,2]
[399943757,1766915445662,-500.0,0.00016438,2]
[399943758,1766915445672,-500.0,0.00016438,2]
[399943759,1766915445682,-500.0,0.00016438,2]
[399943760,1766915445693,-500.0,0.00016438,2]
[399943761,1766915445703,-594.12670663,0.00016438,2]
[399943762,1766915445713,-500.0,0.00016438,2]
[399943763,1766915445722,-500.0,0.00016438,2]
[399943764,1766915445731,-500.0,0.00016438,2]
[399943765,1766915445742,-2409.71057406,0.00016505,2]
[399943766,1766915445753,-4804.0,0.00016533,2]
[399943767,1766915445764,-692.43,0.00016544,2]
[399943768,1766915445773,-177.55008944,0.00016604,2]
[399943769,1766915445783,-254.05773661,0.00016634,2]
[399943770,1766915445793,-216.99388743,0.0001666,2]
[399943771,1766915445803,-2409.71057406,0.00016702,2]
[399943772,1766915445813,-935.17734462,0.00016745,2]
[399943773,1766915445824,-214.0,0.00016748,2]
[399943774,1766915445833,-169.60595422,0.0001678,2]
[399943775,1766915445843,-212.0,0.00016818,2]
[399943776,1766915445852,-602.50518509,0.0001682,2]
[399943777,1766915445862,-25000.0,0.00016821,3]
[399943778,1766915445872,-47762.3669281,0.00016821,2]
[399943779,1766915445882,-25000.0,0.0001683,3]
[399943780,1766915445892,-25000.0,0.00016838,3]
[399943781,1766915445902,-169.60595422,0.0001684,2]
[399943782,1766915445913,-25000.0,0.00016847,3]
[399943783,1766915445923,-25000.0,0.00016856,3]
[399943784,1766915445934,-200.0,0.00016864,2]
[399943785,1766915445943,-25000.0,0.00016865,3]
[399943786,1766915445952,-151.0,0.00016865,2]
[399943787,1766915445961,-151.0,0.00016865,2]
[399943788,1766915445970,-151.0,0.00016865,2]
[399943789,1766915445979,-151.0,0.00016865,2]
[399943790,1766915445989,-151.0,0.00016865,2]
[399943791,1766915445999,-151.0,0.00016865,2]
[399943792,1766915446010,-151.0,0.00016865,2]
[399943793,1766915446021,-151.0,0.00016865,2]
[399943794,1766915446031,-151.0,0.00016865,2]
[399943795,1766915446040,-281.854808,0.00016865,2]
[399943796,1766915446049,-16728.43256293,0.00016874,3]
[399943797,1766915446061,-1352.5556027,0.00016874,3]
[399943798,1766915446073,-313.43480918,0.00016874,3]
[399943924,1766915630398,569.84,0.00013699,2]
[399944024,1766915909047,150965.75738407,0.0003,120]
[399944044,1766916312144,5000.0,0.000139,2]
[399944050,1766916371852,4000.0,0.000139,2]
[399944051,1766916398058,5000.0,0.000139,2]
[399944052,1766916422241,2507.0,0.000139,2]
[399944088,1766916631642,-150.0,0.00013959,2]
[399944089,1766916631652,-2890.18,0.00014018,2]
[399944090,1766916631663,-250.0,0.0001403,2]
[399944091,1766916631672,-1200.0,0.00014044,2]
[399944092,1766916631682,-1200.0,0.00014044,2]
[399944093,1766916631691,-300.0,0.00014044,2]
[399944094,1766916631702,-12692.76,0.00014045,2]
[399944095,1766916631711,-1435.62,0.00014081,2]
[399944096,1766916631720,-1000.0,0.00014103,2]
[399944097,1766916631730,-306.31,0.00014173,2]
[399944098,1766916631740,-944.25,0.00014271,2]
[399944100,1766916631749,-166.66,0.00014484,2]
[399944102,1766916631759,-1185.30026759,0.00014656,2]
[399944104,1766916631769,-2917.0,0.00014799,2]
[399944105,1766916631778,-2917.0,0.00014826,2]
[399944108,1766916631787,-2917.0,0.00014854,2]
[399944110,1766916631797,-2917.0,0.00014881,2]
[399944112,1766916631806,-2917.0,0.00014909,2]
[399944114,1766916631818,-2917.0,0.00014936,2]
[399944116,1766916631827,-2917.0,0.00014963,2]
[399944118,1766916631835,-173.79431503,0.00014975,2]
[399944120,1766916631845,-2917.0,0.00014991,2]
[399944122,1766916631854,-2917.0,0.00015018,2]
[399944124,1766916631863,-1519.60399527,0.00015028,2]
[399944126,1766916631872,-300.0,0.00015045,2]
[399944128,1766916631881,-2917.0,0.00015046,2]
[399944130,1766916631890,-500.0,0.00015073,2]
[399944132,1766916631899,-2917.0,0.00015073,2]
[399944134,1766916631908,-500.0,0.00015073,2]
[399944136,1766916631918,-500.0,0.00015073,2]
[399944138,1766916631927,-500.0,0.00015073,2]
[399944140,1766916631935,-500.0,0.00015073,2]
[399944142,1766916631945,-500.0,0.00015073,2]
[399944143,1766916631954,-500.0,0.00015073,2]
[399944146,1766916631963,-500.0,0.00015073,2]
[399944148,1766916631972,-500.0,0.00015073,2]
[399944150,1766916631981,-500.0,0.00015073,2]
[399944152,1766916631990,-500.0,0.00015073,2]
[399944154,1766916632000,-500.0,0.00015073,2]
[399944156,1766916632008,-500.0,0.00015073,2]